bitfinex-derivatives/quotes_ETHF0:USTF0_20250726
["timestamp","ask_amount","ask_price","bid_price","bid_amount"]
[1753505492155,0.4759,3748.9,3748.4,0.228]
[1753505492156,0.8183,3748.5,3748.4,0.4915]
[1753505492356,1.7499,3748.5,3748.4,0.7195]
[1753505492858,2.28332,3748.5,3748.4,0.7195]
[1753505493056,2.52190695,3748.5,3748.4,0.7195]
[1753505493653,3.05532695,3748.5,3748.4,0.7195]
[1753505494156,2.28332,3748.5,3748.4,0.7195]
[1753505494362,1.7499,3748.5,3748.4,0.7195]
[1753505494660,2.28332,3748.5,3748.4,0.7195]
[1753505495555,1.7499,3748.5,3748.4,0.7195]
[1753505497656,0.8936,3748.5,3748.4,0.7195]
[1753505498061,1.5419,3748.5,3748.4,0.7195]
[1753505498361,1.7499,3748.5,3748.4,1.25293]
[1753505498664,1.7499,3748.5,3748.4,0.7195]
[1753505499462,1.7499,3748.5,3748.4,1.25293]
[1753505500751,0.299,3748.9,3748.7,1.25289]
[1753505500957,0.299,3749.2,3749.1,0.90813]
[1753505501158,0.6103,3749.2,3749.1,1.25283]
[1753505501859,8.63880695,3749.8,3749.6,0.7195]
[1753505501860,1.7499,3749.7,3749.6,0.7195]
[1753505502063,1.7499,3749.7,3749.6,0.4915]
[1753505502260,1.7499,3749.7,3749.6,1.02476]
[1753505502760,2.28314,3749.7,3749.6,0.4915]
[1753505502962,1.7499,3749.7,3749.6,0.4915]
[1753505503767,2.28314,3749.7,3749.6,0.4915]
[1753505505064,1.7499,3749.7,3749.6,0.4915]
[1753505505262,2.28314,3749.7,3749.6,0.4915]
[1753505505758,1.7499,3749.7,3749.6,1.02476]
[1753505505957,2.28314,3749.7,3749.6,0.4915]
[1753505510370,2.28314,3749.7,3749.6,1.02476]
[1753505510566,0.499,3749.9,3749.6,1.25276]
[1753505510760,0.2,3749.9,3749.8,1.25273]
[1753505511263,0.2,3749.9,3749.8,6.25273]
[1753505511470,3.5191,3750.2,3750.1,1.25269]
[1753505511663,0.7547,3750.5,3750.4,0.53315]
[1753505511869,0.3113,3750.5,3750.4,1.25265]
[1753505513573,0.6103,3750.5,3750.4,4.46045]
[1753505515667,0.3113,3750.5,3750.4,4.46045]
[1753505516164,0.6103,3750.8,3750.7,0.7211]
[1753505516366,0.3113,3750.8,3750.7,1.2526]
[1753505517076,1.5419,3751.1,3751.0,1.25256]
[1753505517378,1.5419,3751.1,3751.0,4.46036]
[1753505517577,1.7499,3751.1,3751.0,4.46036]
[1753505517981,0.6103,3751.1,3751.0,4.46036]
[1753505518169,0.3113,3751.1,3751.0,4.46036]
[1753505518370,0.6103,3751.3,3751.2,1.25253]
[1753505518775,1.7499,3751.3,3751.2,1.25253]
[1753505519475,1.7499,3751.3,3751.2,1.02453]
[1753505520176,1.7499,3751.3,3751.2,1.25293]
[1753505521071,1.2942,3751.3,3751.2,1.25293]
[1753505521672,1.7312,3751.3,3751.2,1.25293]
[1753505523985,0.9167,3751.9,3751.8,0.53295]
[1753505524576,1.9335,3751.9,3751.8,0.53295]
[1753505524781,1.7335,3751.8,3751.7,0.53295]
[1753505524981,2.50550695,3751.8,3751.7,0.53295]
[1753505526982,1.7335,3751.6,3751.5,3.74078]
[1753505527280,1.7335,3751.6,3751.5,0.53298]
[1753505538590,0.5798,3751.6,3751.5,1.25948]
[1753505539281,1.5287,3751.6,3751.5,1.25948]
[1753505539489,1.7335,3751.6,3751.5,1.25948]
[1753505542184,2.44055444,3751.6,3751.5,1.25948]
[1753505543291,2.44055444,3751.6,3751.5,11.93358]
[1753505544190,2.44055444,3751.6,3751.5,1.03158]
[1753505544391,2.44055444,3751.6,3751.5,11.93258]
[1753505544688,2.44055444,3751.6,3751.5,1.25948]
[1753505544689,0.99735444,3751.6,3751.5,1.25948]
[1753505544892,0.99735444,3751.6,3751.5,12.16048]
[1753505545391,0.2903,3751.6,3751.5,12.16048]
[1753505545690,0.2903,3751.6,3751.5,1.25948]
[1753505545889,0.2903,3751.6,3751.5,12.15948]
[1753505546493,1.0168,3751.6,3751.5,12.15948]
[1753505546991,1.2165,3751.6,3751.5,12.15948]
[1753505547393,1.5287,3751.6,3751.5,12.15948]
[1753505547594,1.7335,3751.6,3751.5,1.03158]
[1753505547894,1.7335,3751.6,3751.5,11.93158]
[1753505548395,1.7335,3751.6,3751.5,12.15948]
[1753505550893,1.7335,3751.6,3751.5,1.25948]
[1753505551095,1.7335,3751.6,3751.5,12.15448]
[1753505551898,1.7335,3751.6,3751.5,11.92658]
[1753505552093,0.885,3751.9,3751.8,0.84255]
[1753505552600,1.9086,3751.9,3751.8,0.72555]
[1753505553701,1.9086,3751.9,3751.8,1.02975]
[1753505554499,1.9086,3751.9,3751.8,1.25805]
[1753505555198,1.9086,3751.9,3751.8,1.02975]
[1753505557799,1.9086,3751.9,3751.8,11.92075]
[1753505560802,1.7086,3751.7,3751.6,3.2078]
[1753505561006,2.48060695,3751.7,3751.6,3.74078]
[1753505561606,1.7086,3751.6,3751.5,0.53298]
[1753505562301,1.7086,3751.6,3751.5,0.72558]
[1753505563006,1.7086,3751.6,3751.5,0.1926]
[1753505563201,1.7086,3751.6,3751.4,0.53299]
[1753505563499,1.7086,3751.5,3751.4,0.53299]
[1753505563706,1.7086,3751.4,3751.3,0.53301]
[1753505563905,1.7086,3751.4,3751.3,11.43701]
[1753505564106,1.7086,3751.4,3751.3,10.904]
[1753505564306,0.685,3751.4,3751.3,11.43702]
[1753505564504,1.7086,3751.4,3751.3,0.53302]
[1753505564805,1.7086,3751.4,3751.3,11.43702]
[1753505565006,1.7086,3751.4,3751.3,0.53302]
[1753505565201,1.7086,3751.4,3751.3,11.43602]
[1753505566206,1.7086,3751.4,3751.3,0.53302]
[1753505566408,1.7086,3751.4,3751.3,11.43502]
[1753505567506,1.7086,3751.4,3751.3,0.53302]
[1753505567707,1.7086,3751.4,3751.3,10.901]
[1753505568007,2.48060695,3751.4,3751.3,10.901]
[1753505568205,1.45700695,3751.4,3751.2,3.2078]
[1753505568504,1.7086,3751.3,3751.2,3.74083]
[1753505568698,1.7086,3751.3,3751.2,14.64183]
[1753505569507,2.24162,3751.3,3751.2,14.1078]
[1753505569706,1.7086,3751.3,3751.2,14.1078]
[1753505570407,2.24162,3751.3,3751.2,14.1078]
[1753505570808,1.7086,3751.3,3751.2,14.1078]
[1753505571009,2.24162,3751.3,3751.2,14.1078]
[1753505571308,1.7086,3751.3,3751.2,14.1078]
[1753505571501,1.7086,3751.3,3751.2,14.64083]
[1753505571903,1.7086,3751.3,3751.2,3.74083]
[1753505572106,1.7086,3751.3,3751.2,14.64483]
[1753505573399,2.24162,3751.3,3751.2,14.1118]
[1753505573598,0.685,3751.1,3751.0,0.53305]
[1753505573805,1.7086,3751.1,3751.0,11.43605]
[1753505574008,1.7086,3751.1,3751.0,11.62865]
[1753505574406,1.7086,3751.1,3751.0,11.62765]
[1753505575207,1.7086,3751.1,3751.0,11.74465]
[1753505575808,1.7086,3751.1,3751.0,0.53305]
[1753505576211,1.7086,3751.1,3751.0,11.43405]
[1753505576508,0.685,3751.1,3751.0,11.43406]
[1753505576900,0.685,3751.1,3751.0,11.62666]
[1753505577106,0.685,3751.1,3751.0,11.74366]
[1753505577107,1.7086,3751.1,3751.0,11.74366]
[1753505578511,2.24165,3751.1,3751.0,11.74366]
[1753505578706,1.7086,3751.1,3751.0,11.74366]
[1753505579608,2.24165,3751.1,3751.0,11.62666]
[1753505580010,1.7086,3751.1,3751.0,11.62666]
[1753505580311,1.7086,3751.1,3751.0,11.93006]
[1753505580604,0.2976,3751.1,3751.0,12.15796]
[1753505580809,1.7349,3751.4,3751.3,1.25282]
[1753505581610,1.7349,3751.4,3751.3,1.02492]
[1753505582600,1.7349,3751.4,3751.0,0.1167]
[1753505582805,1.7349,3751.1,3751.0,0.72155]
[1753505583017,1.7349,3751.1,3751.0,11.62155]
[1753505583407,1.7349,3751.1,3751.0,11.73825]
[1753505583609,1.7349,3751.1,3751.0,11.92495]
[1753505585211,0.2842,3751.3,3751.2,1.25283]
[1753505585411,0.2842,3751.3,3751.2,4.46063]
[1753505585807,0.5893,3751.3,3751.2,4.46063]
[1753505586413,1.0353,3751.3,3751.2,4.46063]
[1753505587107,1.3433,3751.3,3751.2,4.46063]
[1753505587308,1.7349,3751.3,3751.2,1.02493]
[1753505590816,1.7349,3751.3,3751.2,11.43103]
[1753505591112,1.7349,3750.9,3750.8,4.04609]
[1753505591413,1.7349,3750.9,3750.8,15.12989]
[1753505591910,1.7349,3750.9,3750.8,4.23289]
[1753505592110,1.7349,3750.9,3750.8,15.13289]
[1753505596214,1.7349,3750.9,3750.8,15.36089]
[1753505597022,1.7349,3750.9,3750.8,15.35689]
[1753505599823,1.7349,3750.9,3750.8,4.46089]
[1753505600121,1.7349,3750.9,3750.8,15.35489]
[1753505601924,1.7349,3750.9,3750.8,4.23289]
[1753505602220,1.7349,3750.9,3750.8,15.12389]
[1753505603516,1.7349,3750.9,3750.8,4.23289]
[1753505603724,1.7349,3750.9,3750.8,15.12389]
[1753505603918,1.7349,3750.9,3750.8,15.12289]
[1753505604423,1.7349,3750.9,3750.8,4.23289]
[1753505604724,1.7349,3750.9,3750.8,15.12289]
[1753505605323,1.7349,3750.9,3750.8,15.12189]
[1753505605518,1.7349,3750.9,3750.8,14.62989]
[1753505605717,1.7349,3750.9,3750.8,14.93509]
[1753505605917,1.7349,3750.9,3750.8,15.12189]
[1753505606118,1.7349,3750.9,3750.8,14.0968]
[1753505606119,2.50690695,3750.9,3750.8,14.0968]
[1753505606625,2.50690695,3750.9,3750.8,14.0988]
[1753505606819,3.03998695,3750.9,3750.8,3.2078]
[1753505607017,3.03998695,3750.9,3750.3,23.036]
[1753505607018,1.7349,3750.5,3750.3,23.036]
[1753505607218,1.47160695,3750.5,3750.4,10.89]
[1753505607720,1.7349,3750.5,3750.4,11.42315]
[1753505607915,1.7349,3750.5,3750.4,12.66035]
[1753505611932,1.7349,3750.5,3750.4,12.1272]
[1753505612123,1.7349,3750.5,3750.4,11.8237]
[1753505612828,1.7349,3750.5,3750.4,12.16735]
[1753505613033,1.7349,3750.5,3750.4,0.53315]
[1753505613330,1.7349,3750.5,3750.3,23.036]
[1753505613522,0.6996,3750.5,3750.4,11.42315]
[1753505613923,0.6996,3750.5,3750.3,23.56915]
[1753505614227,0.6996,3750.5,3750.4,11.85165]
[1753505614729,1.7169,3750.5,3750.4,11.85165]
[1753505615329,1.7169,3750.5,3750.4,0.96265]
[1753505615528,1.7169,3750.5,3750.4,11.85165]
[1753505616332,2.25003,3750.5,3750.4,11.3185]
[1753505617624,2.25003,3750.5,3750.4,11.85165]
[1753505617827,2.25003,3750.5,3750.4,0.96265]
[1753505618034,2.25003,3750.5,3750.4,11.84965]
[1753505618540,2.25003,3750.5,3750.4,11.3165]
[1753505620242,2.25003,3750.5,3750.4,11.84965]
[1753505620442,2.25003,3750.5,3750.4,11.3165]
[1753505621842,2.25003,3750.5,3750.4,11.84965]
[1753505622033,1.7169,3750.5,3750.4,12.15695]
[1753505622237,2.25003,3750.5,3750.4,1.47125]
[1753505622437,2.25003,3750.5,3750.4,11.8231]
[1753505624144,1.7169,3750.5,3750.4,11.8231]
[1753505624338,1.7169,3750.5,3750.4,12.54285]
[1753505624544,1.7169,3750.5,3750.4,12.88735]
[1753505625443,1.7169,3750.5,3750.4,12.3542]
[1753505625947,2.25003,3750.5,3750.4,12.3542]
[1753505626147,2.25003,3750.5,3750.4,12.1263]
[1753505626749,1.7169,3750.5,3750.4,12.1263]
[1753505627648,2.25003,3750.5,3750.4,12.1263]
[1753505628248,1.7169,3750.5,3750.4,12.1263]
[1753505628548,1.7169,3750.5,3750.4,15.86725]
[1753505628850,0.5774,3750.5,3750.4,16.09515]
[1753505629045,1.7151,3750.5,3750.4,16.09515]
[1753505632250,1.7151,3750.5,3750.4,12.65945]
[1753505634552,1.7151,3750.5,3750.4,15.86725]
[1753505635250,1.7151,3750.5,3750.4,12.65945]
[1753505637743,1.7151,3750.5,3750.3,3.2078]
[1753505637945,1.7151,3750.4,3750.3,0.8118]
[1753505638151,0.7857,3750.4,3750.3,12.48886]
[1753505638350,0.7857,3750.4,3750.3,2.00236]
[1753505638551,1.4308,3750.4,3750.3,12.91936]
[1753505638953,0.9909,3750.4,3750.3,12.92236]
[1753505639659,0.9909,3750.4,3750.3,16.13016]
[1753505640351,0.5774,3750.4,3750.3,16.13016]
[1753505640551,0.2978,3751.0,3750.9,0.53308]
[1753505640864,1.1356,3751.6,3751.5,1.21989]
[1753505641153,1.71918794,3751.6,3751.5,12.95019]
[1753505641548,2.01698794,3751.6,3751.5,12.95019]
[1753505641753,1.0077,3751.6,3751.5,12.95019]
[1753505642361,1.7416,3751.6,3751.5,12.95019]
[1753505644057,1.7416,3751.6,3751.5,0.4641]
[1753505644261,1.7416,3751.6,3751.5,10.923]
[1753505645259,2.27458,3751.6,3751.3,0.4641]
[1753505645459,1.7416,3751.5,3751.4,11.3851]
[1753505646957,1.7416,3751.5,3751.4,0.4641]
[1753505647261,1.7416,3751.5,3751.1,0.4641]
[1753505647262,1.7416,3751.2,3751.1,0.4641]
[1753505647462,1.7416,3751.2,3751.1,11.3851]
[1753505647861,1.7416,3751.2,3751.1,11.91815]
[1753505648062,1.7416,3751.2,3751.1,12.72205]
[1753505648361,1.7416,3751.2,3751.1,12.72405]
[1753505648763,1.7416,3751.2,3751.1,1.268]
[1753505648965,1.7416,3751.2,3751.1,12.19]
[1753505650259,2.27463,3751.2,3751.1,12.19]
[1753505650766,1.7416,3751.2,3751.1,12.19]
[1753505651568,2.27463,3751.2,3751.1,12.19]
[1753505651966,1.22553,3751.2,3750.8,0.117]
[1753505652174,2.51465706,3751.0,3750.9,0.4641]
[1753505652358,3.04771706,3751.0,3750.9,10.918]
[1753505652562,2.27466,3751.0,3750.9,10.918]
[1753505652762,2.27466,3751.0,3750.9,11.3821]
[1753505654064,1.7416,3751.0,3750.9,11.3821]
[1753505654265,2.27466,3751.0,3750.9,0.4641]
[1753505654465,2.27466,3751.0,3750.9,11.3821]
[1753505655474,2.27466,3751.0,3750.9,11.8819]
[1753505655675,2.27466,3751.0,3750.9,11.9989]
[1753505657974,1.7416,3751.0,3750.9,12.53198]
[1753505658271,2.27466,3751.0,3750.9,1.0809]
[1753505658473,1.7416,3751.0,3750.9,1.61398]
[1753505658774,2.27466,3751.0,3750.9,1.268]
[1753505658971,2.27466,3751.0,3750.9,1.80108]
[1753505659271,2.27466,3751.0,3750.9,1.268]
[1753505660673,1.7416,3751.0,3750.9,1.268]
[1753505660973,2.27466,3751.0,3750.9,1.268]
[1753505662773,1.7416,3751.0,3750.9,1.268]
[1753505663071,1.7416,3751.0,3750.9,2.02928]
[1753505663568,2.27466,3751.0,3750.9,1.268]
[1753505666568,0.1971,3750.7,3750.6,3.2078]
[1753505666766,1.7416,3750.7,3750.6,15.11302]
[1753505667167,1.7416,3750.7,3750.6,15.72982]
[1753505667472,1.7416,3750.7,3750.6,15.91692]
[1753505667972,1.7416,3750.7,3750.6,15.3838]
[1753505668271,1.7416,3750.7,3750.6,15.91692]
[1753505669576,1.7416,3750.7,3750.6,16.14512]
[1753505670274,1.0077,3750.7,3750.6,16.14512]
[1753505671176,1.4495,3750.7,3750.6,16.14512]
[1753505671579,1.7341,3750.7,3750.6,16.14112]
[1753505674386,1.7341,3750.7,3750.6,5.23712]
[1753505674581,1.7341,3750.7,3750.6,16.13912]
[1753505676991,1.7341,3750.7,3750.6,15.91092]
[1753505678588,1.7341,3750.7,3750.6,15.90692]
[1753505680785,0.8906,3750.7,3750.6,16.13492]
[1753505680991,0.3082,3750.7,3750.6,16.13492]
[1753505681490,0.6,3751.0,3750.9,2.00608]
[1753505682295,1.2431,3751.3,3751.2,2.00603]
[1753505682497,2.45510406,3751.3,3751.2,2.00603]
[1753505686399,1.7328,3751.3,3751.2,2.00603]
[1753505687600,1.7328,3751.3,3751.2,1.245]
[1753505689502,2.26582,3751.3,3751.2,1.245]
[1753505689702,1.7328,3751.3,3751.2,1.245]
[1753505690302,1.7328,3751.3,3751.2,1.77803]
[1753505691003,1.7328,3751.3,3751.2,4.98583]
[1753505691800,0.6064,3751.9,3751.8,0.6819]
[1753505691996,2.89070635,3751.9,3751.8,0.9414]
[1753505693903,2.65422173,3751.9,3751.8,0.9414]
[1753505695905,2.65422173,3751.9,3751.8,1.47435]
[1753505696802,0.8,3751.9,3751.8,2.00595]
[1753505696998,0.5059,3751.9,3751.8,2.00595]
[1753505697204,0.2,3751.9,3751.8,2.00595]
[1753505697908,0.2,3751.9,3751.8,2.22107374]
[1753505698298,0.2,3751.9,3751.8,2.00595]
[1753505699807,0.4979,3751.9,3751.8,2.00595]
[1753505700202,0.2,3751.9,3751.8,2.00595]
[1753505701699,0.2,3751.9,3751.8,2.2236902]
[1753505701908,0.4979,3751.9,3751.8,2.00595]
[1753505703803,0.795,3751.9,3751.8,2.00595]
[1753505704004,1.9609,3751.9,3751.8,2.00595]
[1753505705005,1.9609,3751.9,3751.7,3.2078]
[1753505705210,0.9018,3751.9,3751.8,0.53295]
[1753505705410,0.9018,3751.9,3751.7,3.74076]
[1753505705611,0.9018,3751.9,3751.4,10.893]
[1753505705804,1.0591,3751.8,3751.6,0.53298]
[1753505706009,1.7609,3751.7,3751.6,0.53298]
[1753505706904,1.7609,3751.7,3751.6,0.98378]
[1753505707210,1.7609,3751.7,3751.6,1.48588]
[1753505707411,1.7609,3751.7,3751.6,2.01748]
[1753505707813,0.595,3751.7,3751.6,2.01748]
[1753505708014,0.2,3751.9,3751.8,1.02615]
[1753505708213,0.795,3751.9,3751.8,2.01745]
[1753505709108,1.4968,3751.9,3751.8,2.01745]
[1753505709303,1.9609,3751.9,3751.8,2.01745]
[1753505712115,1.1926,3751.9,3751.8,2.79050706]
[1753505712305,0.795,3751.9,3751.8,2.79050706]
[1753505712711,1.6567,3751.9,3751.8,2.79050706]
[1753505713915,1.6567,3751.9,3751.8,5.99830706]
[1753505714108,1.9609,3751.9,3751.8,5.99830706]
[1753505715010,1.9609,3751.9,3751.8,5.77030706]
[1753505715210,1.9609,3751.9,3751.8,4.99725]
[1753505718616,1.9609,3751.9,3751.8,3.74075]
[1753505718821,1.9609,3751.9,3751.8,11.42195]
[1753505719423,1.9609,3751.9,3751.8,0.53295]
[1753505722930,1.9609,3751.9,3751.8,0.98375]
[1753505725126,1.9609,3751.9,3751.8,1.48585]
[1753505725327,1.9609,3751.9,3751.8,1.60275]
[1753505725831,1.9609,3751.9,3751.8,1.78975]
[1753505726524,0.2979,3752.2,3751.8,2.25795706]
[1753505726728,0.6955,3752.2,3752.1,5.99865706]
[1753505727227,0.9926,3752.2,3752.1,5.99865706]
[1753505727827,1.4567,3752.2,3752.1,5.99865706]
[1753505728421,0.595,3752.5,3752.4,2.01776]
[1753505728733,0.2971,3752.7,3752.6,2.07973]
[1753505729032,0.7612,3752.9,3752.8,1.5469]
[1753505729226,0.9518,3752.9,3752.8,5.28751]
[1753505729425,1.463,3752.9,3752.8,5.28751]
[1753505730334,1.463,3752.9,3752.8,3.74061]
[1753505730527,1.7503,3752.9,3752.8,14.63161]
[1753505730727,1.7503,3752.9,3752.8,14.83281]
[1753505730929,1.7503,3752.9,3752.8,15.29211]
[1753505731239,1.7503,3752.9,3752.8,15.58311]
[1753505731625,1.7503,3752.9,3752.8,4.69211]
[1753505732231,1.7503,3752.9,3752.8,5.09321]
[1753505733427,1.7503,3752.9,3752.8,4.97641]
[1753505734928,1.7503,3752.9,3752.8,5.09321]
[1753505735127,1.7503,3752.9,3752.8,4.68541]
[1753505735634,1.7503,3752.9,3752.8,5.28011]
[1753505738937,1.7503,3752.9,3752.8,3.74061]
[1753505739234,1.7503,3752.9,3752.8,3.2078]
[1753505739429,1.7503,3752.9,3752.8,3.409]
[1753505739635,1.7503,3752.9,3752.8,3.8683]
[1753505740027,1.7503,3752.9,3752.8,4.69211]
[1753505741238,1.7503,3752.9,3752.8,4.97641]
[1753505741426,1.7503,3752.9,3752.8,5.28011]
[1753505742736,1.7503,3752.9,3752.8,5.16331]
[1753505744140,1.7503,3752.9,3752.8,5.28011]
[1753505744842,1.7503,3752.9,3752.8,3.74061]
[1753505745634,1.7503,3752.9,3752.8,3.94181]
[1753505745835,1.7503,3752.9,3752.8,4.40111]
[1753505746535,1.7503,3752.9,3752.8,4.97641]
[1753505746735,1.7503,3752.9,3752.8,5.09321]
[1753505749044,1.7503,3752.9,3752.8,5.28011]
[1753505749942,1.7503,3752.9,3752.8,3.74061]
[1753505752945,1.7503,3752.9,3752.8,4.97641]
[1753505753139,1.7503,3752.9,3752.8,5.28011]
[1753505756446,1.7503,3752.9,3752.8,2.07231]
[1753505758443,2.47234706,3752.9,3752.8,2.07231]
[1753505758746,1.7503,3752.9,3752.8,2.07231]
[1753505759349,2.47246226,3752.9,3752.8,2.07231]
[1753505759544,1.7503,3752.9,3752.8,2.07231]
[1753505759846,0.6945,3753.2,3753.1,0.3066]
[1753505760153,2.43976106,3753.2,3753.1,2.05756]
[1753505760543,2.43976106,3753.2,3753.1,1.94086]
[1753505760748,2.43976106,3753.2,3753.1,1.75416]
[1753505768052,2.43976106,3753.2,3753.1,1.87086]
[1753505769155,2.43976106,3753.2,3753.1,1.2214]
[1753505769354,2.43976106,3753.2,3753.1,0.6309]
[1753505770060,2.43976106,3753.2,3753.1,1.16366]
[1753505770760,1.7176,3753.1,3752.7,3.6499]
[1753505770955,0.6945,3753.0,3752.9,0.53278]
[1753505771150,1.7176,3753.0,3752.9,0.53278]
[1753505771561,2.43991119,3753.0,3752.9,0.53278]
[1753505771760,1.02821119,3753.0,3752.9,2.05758]
[1753505771966,2.43991119,3753.0,3752.9,2.05758]
[1753505773856,1.02821119,3753.0,3752.9,2.05758]
[1753505774062,0.72231119,3753.0,3752.9,2.05758]
[1753505774759,2.14341119,3753.0,3752.9,2.05758]
[1753505775566,0.794,3753.0,3752.9,2.05758]
[1753505775767,0.3059,3753.0,3752.9,2.05758]
[1753505777059,0.5934,3753.0,3752.9,2.05758]
[1753505777265,1.0231,3753.0,3752.9,2.05758]
[1753505777470,1.2205,3753.0,3752.9,2.05758]
[1753505778867,1.7176,3753.0,3752.9,2.05758]
[1753505781274,1.2879,3753.0,3752.9,2.05758]
[1753505781465,1.7176,3753.0,3752.9,2.05758]
[1753505784873,1.7176,3753.0,3752.9,2.05759]
[1753505785071,1.0231,3752.9,3752.7,3.2078]
[1753505785265,1.0231,3752.7,3752.3,14.5319]
[1753505785466,1.7176,3752.4,3752.3,15.25358]
[1753505785866,1.7176,3752.4,3752.3,15.53748]
[1753505786070,1.7176,3752.4,3752.3,15.25358]
[1753505787065,1.7176,3752.4,3752.3,3.2078]
[1753505787270,1.30591706,3752.5,3752.1,34.4389]
[1753505787271,0.6945,3752.2,3752.1,34.4389]
[1753505787471,1.7176,3752.2,3752.1,34.4389]
[1753505789880,1.7176,3752.2,3752.1,33.906]
[1753505790076,1.7176,3752.2,3752.1,34.4389]
[1753505790775,1.7176,3752.2,3752.1,11.4149]
[1753505792781,1.7176,3752.2,3752.1,10.882]
[1753505793282,2.25049,3752.2,3752.1,10.882]
[1753505793583,1.7176,3752.2,3752.1,10.882]
[1753505793780,2.25049,3752.2,3752.1,10.882]
[1753505794183,1.7176,3752.2,3752.1,10.882]
[1753505794380,0.5329,3752.1,3752.0,0.53292]
[1753505794586,1.7672,3752.1,3752.0,0.53292]
[1753505794880,2.3001,3752.1,3752.0,0.53292]
[1753505795086,2.3001,3752.1,3751.9,3.74073]
[1753505795281,1.0678,3752.0,3751.9,3.74073]
[1753505795484,1.7672,3752.0,3751.9,3.74073]
[1753505795686,2.30012,3752.0,3751.9,3.2078]
[1753505797190,2.30013,3751.9,3751.8,10.883]
[1753505798385,1.02626,3751.8,3751.7,0.1993]
[1753505798686,1.7672,3751.8,3751.7,1.20056]
[1753505798989,2.30015,3751.8,3751.7,1.80346]
[1753505799187,2.30015,3751.8,3751.7,1.2705]
[1753505800391,2.30015,3751.8,3751.7,1.80346]
[1753505801190,2.30015,3751.8,3751.7,1.2705]
[1753505801582,2.30015,3751.8,3751.7,0.4923]
[1753505801792,0.6994,3751.5,3751.4,0.4683]
[1753505802090,1.84719,3751.5,3751.4,0.4683]
[1753505802281,2.30019,3751.5,3751.4,0.6676]
[1753505802886,2.30019,3751.5,3751.2,4.03383]
[1753505803081,1.23245,3751.1,3751.0,0.4683]
[1753505803284,2.30025,3751.1,3751.0,0.4683]
[1753505804191,1.7672,3751.1,3751.0,0.4683]
[1753505804397,1.7672,3751.1,3751.0,1.00136]
[1753505804792,1.7672,3751.1,3751.0,1.20066]
[1753505804988,1.7672,3751.1,3751.0,1.49366]
[1753505805385,1.7672,3751.1,3751.0,1.80356]
[1753505805588,1.7672,3751.1,3751.0,1.92046]
[1753505807991,1.7672,3751.1,3751.0,2.10746]
[1753505808698,1.7672,3751.1,3751.0,1.5744]
[1753505809092,1.7672,3751.1,3751.0,2.10746]
[1753505809998,1.7672,3751.1,3751.0,1.5744]
[1753505811298,1.7672,3751.1,3751.0,2.10746]
[1753505813202,1.7672,3751.1,3750.8,3.2078]
[1753505813402,0.6994,3750.9,3750.8,4.23318]
[1753505813698,1.7672,3750.9,3750.8,3.7001]
[1753505814098,1.7672,3750.9,3750.8,4.1684]
[1753505814294,1.7672,3750.9,3750.8,4.4783]
[1753505814494,1.7672,3750.9,3750.8,4.5952]
[1753505814495,2.30027,3750.9,3750.8,4.5952]
[1753505814889,1.7672,3750.9,3750.8,5.12829]
[1753505815695,1.7672,3750.9,3750.8,5.31529]
[1753505816299,2.30028,3750.9,3750.8,4.7822]
[1753505816599,2.30028,3750.9,3750.8,4.4783]
[1753505816795,2.30028,3750.9,3750.8,3.4071]
[1753505817395,2.30028,3750.9,3750.8,3.8754]
[1753505817995,2.30028,3750.9,3750.8,0.6676]
[1753505818395,2.3003,3750.7,3750.6,0.9606]
[1753505818590,0.6994,3750.4,3750.3,1.49375]
[1753505818891,2.30035,3750.4,3750.3,0.9606]
[1753505819088,1.78197,3750.2,3750.1,0.6676]
[1753505819292,2.30037,3750.2,3750.1,0.6676]
[1753505819490,1.23259,3750.1,3750.0,0.5092]
[1753505819697,2.30039,3750.1,3750.0,1.2705]
[1753505821001,2.30039,3750.1,3750.0,0.6676]
[1753505822299,1.7672,3750.1,3750.0,2.1031]
[1753505822497,1.3142,3750.1,3750.0,2.1031]
[1753505823399,1.7378,3750.1,3750.0,2.1031]
[1753505825106,0.6923,3750.3,3750.2,1.5274]
[1753505825304,1.6903,3750.3,3750.2,1.5274]
[1753505826407,2.22346,3750.3,3750.2,1.5274]
[1753505826607,1.6903,3750.3,3750.2,2.06057]
[1753505826903,2.22346,3750.3,3750.2,1.5274]
[1753505827104,2.22346,3750.3,3750.2,2.06057]
[1753505828405,0.6708,3750.0,3749.9,1.5274]
[1753505828608,1.6903,3750.0,3749.9,2.06062]
[1753505829005,2.2235,3750.0,3749.9,1.5274]
[1753505829904,2.22352,3749.9,3749.8,0.19734123]
[1753505831408,2.95549591,3749.9,3749.8,0.19734123]
[1753505831708,2.95549591,3749.9,3749.8,0.82244123]
[1753505835906,2.95549591,3749.9,3749.8,0.38954123]
[1753505836104,2.95549591,3749.9,3749.8,0.19734123]
[1753505838310,2.22352,3749.9,3749.8,0.19734123]
[1753505838513,2.95539957,3749.9,3749.8,0.19734123]
[1753505843811,2.95539957,3749.9,3749.8,1.72474123]
[1753505844717,1.50832,3749.9,3749.8,1.72474123]
[1753505844916,1.31802,3749.9,3749.8,1.72474123]
[1753505845315,2.05103297,3749.9,3749.8,1.72474123]
[1753505846718,2.34263297,3749.9,3749.8,1.72474123]
[1753505847119,2.95653297,3749.9,3749.8,1.72474123]
[1753505849113,1.03731297,3749.9,3749.8,1.72474123]
[1753505849313,1.57053297,3749.9,3749.8,1.72474123]